bitfinex/quotes_ETHUSD_20250914
["timestamp","ask_amount","ask_price","bid_price","bid_amount"]
[1757811852618,0.7381,4664.4,4664.3,5.84734442]
[1757811853049,0.7381,4664.4,4664.3,3.7034]
[1757811853238,1.2188,4664.4,4664.3,3.7034]
[1757811853434,1.2188,4664.4,4664.3,5.84734442]
[1757811854421,1.2188,4664.4,4664.3,3.7024]
[1757811854745,1.2188,4664.4,4664.3,5.84634442]
[1757811855226,1.2188,4664.4,4664.3,2.25034442]
[1757811856420,1.2188,4664.4,4664.3,0.1064]
[1757811856939,1.2188,4664.4,4664.3,2.5384]
[1757811858250,1.2188,4664.4,4664.3,4.68234442]
[1757811858550,0.002,4664.4,4664.3,2.71857886]
[1757811858849,0.002,4664.4,4664.3,2.7400183]
[1757811859347,0.002,4664.4,4664.3,2.71857886]
[1757811859715,0.4494,4664.4,4664.3,2.71857886]
[1757811860820,0.2928,4664.4,4664.3,2.71857886]
[1757811861021,0.7402,4664.4,4664.3,2.71857886]
[1757811861523,1.2321,4664.4,4664.3,0.1064]
[1757811862465,0.002,4664.4,4664.3,2.25034442]
[1757811862828,0.002,4664.4,4664.3,2.27178386]
[1757811863865,0.002,4664.4,4664.3,2.25034442]
[1757811865844,0.4494,4664.4,4664.3,2.25034442]
[1757811866148,0.7402,4664.4,4664.3,2.25034442]
[1757811867047,0.4494,4664.4,4664.3,2.25034442]
[1757811867845,0.7402,4664.4,4664.3,2.25034442]
[1757811868655,0.4494,4664.4,4664.3,2.25034442]
[1757811869079,0.002,4664.4,4664.3,2.25034442]
[1757811869646,0.7402,4664.4,4664.3,0.1064]
[1757811869877,0.7402,4664.4,4664.3,2.25034442]
[1757811870757,1.2321,4664.4,4664.3,2.25034442]
[1757811871268,1.2321,4664.4,4664.3,0.1064]
[1757811872845,1.2321,4664.4,4664.3,2.25034442]
[1757811873047,0.7402,4664.4,4664.3,2.25034442]
[1757811873283,0.7402,4664.4,4664.3,0.1064]
[1757811874484,0.7402,4664.4,4664.3,2.25034442]
[1757811875058,0.7402,4664.4,4664.3,0.1064]
[1757811876057,0.2928,4664.4,4664.3,0.1064]
[1757811876392,0.7402,4664.4,4664.3,2.25034442]
[1757811876790,0.002,4664.4,4664.3,3.04928574]
[1757811877580,0.002,4664.4,4664.3,6.86272518]
[1757811877781,0.002,4664.4,4664.3,7.6485144]
[1757811878394,0.002,4664.9,4664.8,5.93571462]
[1757811878583,0.002,4664.9,4664.8,9.52171462]
[1757811878788,0.002,4664.9,4664.8,11.32706469]
[1757811879370,0.002,4664.9,4664.8,11.52753047]
[1757811881301,0.002,4664.9,4664.8,11.52742688]
[1757811883302,0.002,4664.9,4664.8,11.05312688]
[1757811885604,0.002,4664.9,4664.8,11.38605554]
[1757811888300,0.002,4664.9,4664.8,11.49245554]
[1757811891315,0.002,4664.9,4664.8,11.96195554]
[1757811892820,0.002,4665.0,4664.9,5.93566867]
[1757811892989,0.002,4665.0,4664.9,7.76097189]
[1757811897509,0.002,4665.0,4664.9,8.09390055]
[1757811897737,0.002,4665.0,4664.9,8.97923631]
[1757811898026,0.002,4665.5,4665.4,0.792]
[1757811898323,0.002,4665.9,4665.8,2.14325517]
[1757811898623,0.002,4665.9,4665.8,9.27797857]
[1757811898821,0.002,4665.9,4665.8,9.36294602]
[1757811900019,0.002,4665.9,4665.8,10.15494602]
[1757811900411,0.002,4665.9,4665.8,10.62444602]
[1757811900626,0.002,4665.9,4665.8,11.9508232]
[1757811901902,0.002,4665.9,4665.8,11.4813232]
[1757811903026,0.7491,4665.9,4665.8,11.14839454]
[1757811903632,0.3106,4665.9,4665.8,11.14839454]
[1757811903805,0.7491,4665.9,4665.8,11.14839454]
[1757811904329,1.2451,4665.9,4665.8,11.14739454]
[1757811906707,0.7491,4665.9,4665.8,11.14739454]
[1757811907337,0.7491,4665.9,4665.8,11.14539454]
[1757811907539,0.7491,4665.9,4665.8,10.94503235]
[1757811910734,1.2451,4665.9,4665.8,6.04165517]
[1757811910935,1.2451,4665.9,4665.8,4.368]
[1757811911140,1.2451,4665.9,4665.8,6.576]
[1757811911922,1.2451,4665.9,4665.8,8.71925517]
[1757811913546,1.2451,4665.9,4665.8,3.0]
[1757811913844,1.2451,4665.9,4665.8,6.576]
[1757811914953,1.2451,4665.9,4665.8,8.71925517]
[1757811916156,1.2451,4665.9,4665.8,8.71825517]
[1757811917169,0.002,4665.9,4665.8,8.71825517]
[1757811917338,0.002,4665.9,4665.8,10.71500935]
[1757811918357,0.4748,4665.9,4665.8,10.71500935]
[1757811918731,0.002,4665.9,4665.8,10.71500935]
[1757811920337,0.7698,4665.9,4665.8,10.71500935]
[1757811920956,0.7698,4665.9,4665.8,10.82140935]
[1757811921271,0.7698,4665.9,4665.8,7.24640935]
[1757811921435,0.7698,4665.9,4665.8,10.48948069]
[1757811922240,0.7698,4665.9,4665.8,6.91348069]
[1757811922563,0.7698,4665.9,4665.8,10.48948069]
[1757811924381,0.4748,4665.9,4665.8,10.48948069]
[1757811924787,0.7698,4665.9,4665.8,10.48948069]
[1757811925088,0.7698,4665.9,4665.8,9.61765517]
[1757811925791,0.7698,4665.9,4665.8,6.04165517]
[1757811926279,0.4748,4665.9,4665.8,9.61565517]
[1757811929076,0.4748,4665.9,4665.8,6.04165517]
[1757811929276,1.2076,4665.9,4665.8,9.61465517]
[1757811930594,0.725,4665.9,4665.8,9.61465517]
[1757811930777,0.725,4665.9,4665.8,10.79055347]
[1757811931182,0.002,4665.9,4665.8,10.79055347]
[1757811931763,0.4302,4665.9,4665.8,10.79055347]
[1757811932159,0.4302,4665.9,4665.8,7.21755347]
[1757811932366,0.4302,4665.9,4665.8,10.79055347]
[1757811932565,0.002,4665.9,4665.8,10.79055347]
[1757811932977,0.4302,4665.9,4665.8,10.79055347]
[1757811933697,0.002,4665.9,4665.8,11.26475347]
[1757811933870,0.002,4666.0,4665.9,5.93520924]
[1757811934065,0.002,4666.0,4665.9,8.88148973]
[1757811935333,0.002,4666.4,4666.3,0.792]
[1757811935464,0.002,4666.4,4666.3,7.38643025]
[1757811935676,0.002,4666.4,4666.3,9.44832866]
[1757811936200,0.002,4666.4,4666.3,11.59135418]
[1757811936370,0.002,4666.4,4666.3,13.01221924]
[1757811938793,0.002,4666.4,4666.3,13.48641924]
[1757811939894,0.002,4666.4,4666.3,13.01221924]
[1757811940894,0.725,4666.4,4666.3,9.10629058]
[1757811941124,1.2076,4666.4,4666.3,11.25642552]
[1757811943523,1.2076,4666.4,4666.3,6.89342552]
[1757811943707,1.2076,4666.4,4666.3,10.46442552]
[1757811944933,1.2076,4666.4,4666.3,11.25642552]
[1757811944934,0.2968,4666.4,4666.3,11.25642552]
[1757811945136,0.002,4666.4,4666.3,11.25642552]
[1757811945302,0.002,4666.4,4666.3,12.59637771]
[1757811946729,0.002,4666.4,4666.3,13.40860637]
[1757811949603,0.002,4666.4,4666.3,12.92930637]
[1757811949798,1.198,4666.4,4666.3,12.92930637]
[1757811950028,0.4313,4666.4,4666.3,12.92930637]
[1757811950223,0.002,4666.4,4666.3,12.92930637]
[1757811952945,0.4347,4666.4,4666.3,12.92930637]
[1757811953239,0.4347,4666.4,4666.3,6.35830637]
[1757811953240,1.2029,4666.4,4666.3,6.35830637]
[1757811953419,1.2029,4666.4,4666.3,7.46442552]
[1757811953606,1.2029,4666.4,4666.3,11.25642552]
[1757811958328,1.2029,4666.4,4666.3,6.89342552]
[1757811958525,1.2029,4666.4,4666.3,10.46442552]
[1757811958940,1.2029,4666.4,4666.3,8.82042552]
[1757811959925,1.2029,4666.4,4666.3,5.24942552]
[1757811960124,1.2029,4666.4,4666.3,8.82142552]
[1757811960453,1.2029,4666.4,4666.3,0.1064]
[1757811960654,1.32319,4666.4,4666.0,0.001]
[1757811961552,0.02141939,4666.3,4666.0,0.001]
[1757811961755,2.14311737,4666.1,4666.0,0.001]
[1757811961954,2.14334705,4665.6,4664.8,0.001]
[1757811962156,0.891,4666.0,4664.8,0.001]
[1757811962450,1.2009,4665.6,4665.2,2.14348871]
[1757811962651,1.2009,4665.6,4665.2,0.33292866]
[1757811963157,1.2009,4665.6,4665.4,2.14343754]
[1757811963354,1.2009,4665.6,4665.2,2.47641998]
[1757811963555,1.2009,4665.6,4665.3,2.14346988]
[1757811963854,1.2009,4665.6,4665.1,1.379]
[1757811964220,1.2009,4665.6,4665.0,0.793]
[1757811964420,1.2009,4665.6,4665.0,6.5216205]
[1757811965448,1.2009,4665.6,4665.1,2.14356459]
[1757811965943,3.34424705,4665.6,4665.0,3.586]
[1757811966257,3.36566644,4665.6,4665.0,3.586]
[1757811966862,3.36566644,4665.6,4665.0,0.001]
[1757811967334,5.00966644,4665.6,4665.0,0.001]
[1757811967540,4.98824705,4665.6,4665.0,0.001]
[1757811968333,8.57424705,4665.6,4665.0,0.001]
[1757811969456,14.34803535,4665.6,4665.0,0.001]
[1757811969651,14.43382357,4665.6,4665.0,0.001]
[1757811970960,14.5529875,4665.6,4665.0,0.001]
[1757811971147,14.43382357,4665.6,4665.0,0.001]
[1757811972284,11.66703527,4665.6,4665.0,0.001]
[1757811977357,12.95503527,4665.6,4665.0,0.001]
[1757811978368,9.36203527,4665.6,4665.0,0.001]
[1757811978691,12.95403527,4665.6,4665.0,0.001]
[1757811979355,16.38103527,4665.6,4665.0,0.001]
[1757811979556,19.97203527,4665.6,4665.0,0.001]
[1757811983264,20.09108224,4665.6,4665.0,0.001]
[1757811984996,20.88308224,4665.6,4665.0,0.001]
[1757811985202,21.08153416,4665.6,4665.0,0.001]
[1757811985508,21.538948,4665.6,4665.0,0.001]
[1757811985810,6.43180654,4664.6,4664.5,0.001]
[1757811985984,21.45959484,4664.6,4664.5,0.001]
[1757811986306,20.03124821,4664.6,4664.5,0.001]
[1757811986505,20.11705815,4664.6,4664.5,0.001]
[1757811987398,6.43199039,4664.2,4664.1,1e-08]
[1757811987578,12.79677869,4664.2,4664.1,1e-08]
[1757811987929,14.02307869,4664.2,4664.1,1e-08]
[1757811988107,5.14399039,4664.2,4664.1,1e-08]
[1757811988312,9.03389039,4664.2,4664.1,1e-08]
[1757811988618,11.36751436,4664.2,4664.1,1e-08]
[1757811988787,11.24829039,4664.2,4664.1,1e-08]
[1757811988987,10.75659039,4664.2,4664.1,1e-08]
[1757811989182,10.87587957,4664.2,4664.1,1e-08]
[1757811989385,17.19036787,4664.2,4664.1,1e-08]
[1757811989604,14.25717228,4664.2,4664.1,1e-08]
[1757811989810,12.03538398,4664.2,4664.1,1e-08]
[1757811990212,11.34490638,4664.2,4664.1,1e-08]
[1757811990723,10.88687957,4664.2,4664.1,1e-08]
[1757811991219,7.28587957,4664.2,4664.1,1e-08]
[1757811991380,10.88687957,4664.2,4664.1,1e-08]
[1757811991576,11.34469682,4664.2,4664.1,1e-08]
[1757811992179,7.28587957,4664.2,4664.1,1e-08]
[1757811992380,6.98597957,4664.2,4664.1,1e-08]
[1757811992608,10.15127957,4664.2,4664.1,1e-08]
[1757811993045,10.88687957,4664.2,4664.1,1e-08]
[1757811993338,14.15236787,4664.2,4664.1,1e-08]
[1757811993610,17.6595271,4664.2,4664.1,1e-08]
[1757811994497,24.6785271,4664.2,4664.1,1e-08]
[1757811995213,24.87741407,4664.2,4664.1,1e-08]
[1757811996320,24.96323855,4664.2,4664.1,1e-08]
[1757811998118,20.57023855,4664.2,4664.1,1e-08]
[1757811998324,23.67853855,4664.2,4664.1,1e-08]
[1757811998918,24.17023855,4664.2,4664.1,1e-08]
[1757812005650,23.67853855,4664.2,4664.1,1e-08]
[1757812005851,14.31315025,4664.2,4664.1,1e-08]
[1757812006144,17.91015025,4664.2,4664.1,1e-08]
[1757812007114,14.11426328,4664.2,4664.1,1e-08]
[1757812007329,14.11426328,4664.2,4664.1,0.45800001]
[1757812007611,17.25210405,4664.2,4664.1,0.45800001]
[1757812008339,17.71294991,4664.2,4664.1,1e-08]
[1757812008534,14.88204991,4664.2,4664.1,1e-08]
[1757812008748,17.71294991,4664.2,4664.1,1e-08]
[1757812009728,17.71294991,4664.2,4664.1,0.45800001]
[1757812010038,17.71194991,4664.2,4664.1,0.45800001]
[1757812010234,17.62612543,4664.2,4664.1,0.45800001]
[1757812010435,14.03112543,4664.2,4664.1,0.45800001]
[1757812010635,12.87927957,4664.2,4664.1,0.45800001]
[1757812010836,12.75999039,4664.2,4664.1,0.45800001]
[1757812012114,0.002,4664.2,4664.1,0.45800001]
[1757812012318,3.597,4664.2,4664.1,0.45800001]
[1757812013014,0.002,4664.2,4664.1,0.45800001]
[1757812013246,3.597,4664.2,4664.1,0.72045538]
[1757812013749,3.597,4664.2,4664.1,0.45800001]
[1757812014638,3.596,4664.2,4664.1,0.45800001]
[1757812018264,3.595,4664.2,4664.1,0.45800001]
[1757812020149,0.002,4664.2,4664.1,2.60203637]
[1757812020349,3.594,4664.2,4664.1,2.60203637]
[1757812020578,3.594,4664.2,4664.1,0.94558234]
[1757812020882,3.594,4664.2,4664.1,0.45800001]
[1757812021080,3.593,4664.2,4664.1,0.45800001]
[1757812022564,3.593,4664.2,4664.1,1e-08]
[1757812022565,6.95619039,4664.2,4664.1,1e-08]
[1757812025369,3.36519039,4664.2,4664.1,1e-08]
[1757812025691,6.97760978,4664.2,4664.1,1e-08]
[1757812025855,6.95619039,4664.2,4664.1,1e-08]
[1757812026786,9.95619039,4664.2,4664.1,1e-08]
[1757812027293,18.38267211,4664.2,4664.1,1e-08]
[1757812027593,18.58182723,4664.2,4664.1,1e-08]
[1757812028612,3.43222025,4663.7,4663.6,1e-08]
[1757812028890,15.08346147,4663.7,4663.6,1e-08]
[1757812029086,15.4669238,4663.7,4663.6,1e-08]
[1757812029294,16.4007238,4663.7,4663.6,1e-08]
[1757812029776,16.4865481,4663.7,4663.6,1e-08]
[1757812030209,9.50172627,4663.7,4663.6,1e-08]
[1757812030372,11.80672627,4663.7,4663.6,1e-08]
[1757812032495,7.72102627,4663.7,4663.6,1e-08]
[1757812032700,11.22720197,4663.7,4663.6,1e-08]
[1757812032901,11.10772025,4663.7,4663.6,1e-08]
[1757812033127,11.22719414,4663.7,4663.6,1e-08]
[1757812033609,16.40071597,4663.7,4663.6,1e-08]
[1757812034073,16.59983614,4663.7,4663.6,1e-08]
[1757812034600,16.59980998,4663.7,4663.6,1e-08]
[1757812035308,16.40071597,4663.7,4663.6,1e-08]
[1757812036287,16.59977393,4663.7,4663.6,1e-08]
[1757812036706,18.85677393,4663.7,4663.6,1e-08]
[1757812038107,18.94260062,4663.7,4663.6,1e-08]
[1757812038605,25.96160062,4663.7,4663.6,1e-08]
[1757812038800,16.71977879,4663.7,4663.6,1e-08]
[1757812039006,19.37597879,4663.7,4663.6,1e-08]
[1757812039210,19.17692083,4663.7,4663.6,1e-08]
[1757812039402,19.62062083,4663.7,4663.6,1e-08]
[1757812040421,20.09602083,4663.7,4663.6,1e-08]
[1757812040928,20.29509582,4663.7,4663.6,1e-08]
[1757812041129,20.09602083,4663.7,4663.6,1e-08]
[1757812041327,20.29509763,4663.7,4663.6,1e-08]
[1757812042426,20.29709763,4663.7,4663.6,1e-08]
[1757812042815,20.09802083,4663.7,4663.6,1e-08]
[1757812044034,20.09803336,4663.7,4663.6,1e-08]
[1757812045505,20.29724485,4663.7,4663.6,1e-08]
[1757812046806,22.55424485,4663.7,4663.6,1e-08]
[1757812047008,20.29724485,4663.7,4663.6,1e-08]
[1757812047720,23.34524485,4663.7,4663.6,1e-08]
[1757812047934,23.80450523,4663.7,4663.6,1e-08]
[1757812048109,2.14468012,4662.7,4662.6,0.001]
[1757812048305,15.05950195,4662.7,4662.6,0.001]
[1757812048512,16.41248837,4662.7,4662.6,0.001]
[1757812048710,16.86658837,4662.7,4662.6,0.001]
[1757812048906,16.39118837,4662.7,4662.6,0.001]
[1757812049112,15.63508837,4662.7,4662.6,0.001]
[1757812049348,12.24226654,4662.7,4662.6,0.001]
[1757812050546,12.24226654,4662.7,4662.6,0.4551]
[1757812050547,7.38068012,4662.7,4662.6,0.4551]
[1757812051643,7.38168012,4662.7,4662.6,0.4551]
[1757812053567,7.38168012,4662.7,4662.6,0.001]
[1757812053773,9.54757822,4662.7,4662.6,0.001]
[1757812053970,12.54757822,4662.7,4662.6,0.001]
[1757812054260,20.04197822,4662.7,4662.6,0.001]
[1757812054666,20.24168419,4662.7,4662.6,0.001]
[1757812055018,20.24168158,4662.7,4662.6,0.001]
[1757812056650,22.49768158,4662.7,4662.6,0.001]
[1757812056947,20.24168158,4662.7,4662.6,0.001]
[1757812057733,19.92218012,4662.7,4662.6,0.001]
[1757812058527,20.49615001,4662.7,4662.6,0.001]
[1757812059064,20.69593406,4662.7,4662.6,0.001]
[1757812059241,20.83655751,4662.7,4662.6,0.001]
[1757812059643,21.03635181,4662.7,4662.6,0.001]
[1757812059831,21.15622327,4662.7,4662.6,0.001]
[1757812060228,21.94822327,4662.7,4662.6,0.001]
[1757812068866,24.77770837,4662.7,4662.6,0.001]
[1757812069838,18.93070837,4662.7,4662.6,0.001]
[1757812070044,21.94322327,4662.7,4662.6,0.001]
[1757812071376,21.46782327,4662.7,4662.6,0.001]
[1757812071582,19.69412327,4662.7,4662.6,0.001]
[1757812071875,23.71322327,4662.7,4662.6,0.001]
[1757812072444,27.11114398,4662.7,4662.6,0.001]
[1757812072771,24.85514398,4662.7,4662.6,0.001]
[1757812074491,24.23902214,4662.7,4662.6,0.001]
[1757812074668,24.72882214,4662.7,4662.6,0.001]
[1757812076676,17.22002214,4662.7,4662.6,0.001]
[1757812077308,17.79350724,4662.7,4662.6,0.001]
[1757812077791,17.79150724,4662.7,4662.6,0.001]
[1757812080006,23.31949753,4662.7,4662.6,0.001]
[1757812080220,19.96382214,4662.7,4662.6,0.001]
[1757812080696,20.5381272,4662.7,4662.6,0.001]
[1757812081107,20.5371272,4662.7,4662.6,0.001]
[1757812081281,19.96282214,4662.7,4662.6,0.001]
[1757812081681,26.98182214,4662.7,4662.6,0.001]
[1757812085523,24.23122214,4662.7,4662.6,0.001]
[1757812085690,24.72102214,4662.7,4662.6,0.001]
[1757812085891,29.75921243,4662.7,4662.6,0.001]
[1757812086198,30.52427563,4662.7,4662.6,0.001]
[1757812086580,27.74208534,4662.7,4662.6,0.001]
[1757812088315,26.97702214,4662.7,4662.6,0.001]
[1757812088706,27.74409564,4662.7,4662.6,0.001]
[1757812088912,30.52628593,4662.7,4662.6,0.001]
[1757812089204,26.97702214,4662.7,4662.6,0.001]
[1757812091494,19.95802214,4662.7,4662.6,0.001]
[1757812092412,19.46822214,4662.7,4662.6,0.001]
[1757812094018,19.46868363,4662.7,4662.6,0.001]
[1757812094225,24.61468363,4662.7,4662.6,0.001]
[1757812095692,25.06588363,4662.7,4662.6,0.001]
[1757812098708,3.43314018,4661.7,4661.6,0.001]
[1757812098918,14.56420193,4661.7,4661.6,0.001]
[1757812099092,15.22434369,4661.7,4661.6,0.001]
[1757812100507,16.30684369,4661.7,4661.6,0.001]
[1757812100830,19.56261736,4661.7,4661.6,0.001]
[1757812101194,20.10641412,4661.7,4661.6,0.001]
[1757812101616,16.67762671,4661.7,4661.6,0.001]
[1757812103130,16.10221736,4661.7,4661.6,0.001]
[1757812103335,17.43082671,4661.7,4661.6,0.001]
[1757812103629,17.88202671,4661.7,4661.6,0.001]
[1757812103802,17.30661736,4661.7,4661.6,0.001]
[1757812104321,17.88167923,4661.7,4661.6,0.001]
[1757812104526,3.792,4661.6,4660.8,0.081]
[1757812104723,7.07019029,4660.9,4660.8,1e-08]
[1757812104923,13.11743449,4660.9,4660.8,1e-08]
[1757812105137,13.57771188,4660.9,4660.8,1e-08]
[1757812105343,13.57750697,4660.9,4660.8,1e-08]
[1757812105528,13.81770697,4660.9,4660.8,1e-08]
[1757812106047,21.12720697,4660.9,4660.8,1e-08]
[1757812106215,25.15259726,4660.9,4660.8,1e-08]
[1757812106416,21.62870697,4660.9,4660.8,1e-08]
[1757812107222,22.09140697,4660.9,4660.8,1e-08]
[1757812107944,22.83310697,4660.9,4660.8,1e-08]
[1757812108312,22.38190697,4660.9,4660.8,1e-08]
[1757812108829,22.37040697,4660.9,4660.8,1e-08]
[1757812109007,22.83261576,4660.9,4660.8,1e-08]
[1757812109340,17.25421576,4660.9,4660.8,1e-08]
[1757812109529,14.47202547,4660.9,4660.8,1e-08]
[1757812109706,17.81382547,4660.9,4660.8,0.24020001]
[1757812109906,14.23182547,4660.9,4660.8,0.24020001]
[1757812110140,12.48354808,4660.9,4660.8,0.24020001]
[1757812110344,9.28414826,4660.9,4660.8,0.24020001]
[1757812110559,12.74750837,4660.9,4660.8,0.24020001]
[1757812111132,12.74750837,4660.9,4660.8,0.24120001]
[1757812112519,9.16450837,4660.9,4660.8,0.24120001]
[1757812112711,12.74750837,4660.9,4660.8,0.24120001]
[1757812113314,15.52969866,4660.9,4660.8,0.00100001]
[1757812113732,15.64931345,4660.9,4660.8,0.00100001]
[1757812116558,18.64931345,4660.9,4660.8,0.00100001]
[1757812116720,18.84866126,4660.9,4660.8,0.00100001]
[1757812117450,20.88886126,4660.9,4660.8,0.00100001]
[1757812117651,20.68951345,4660.9,4660.8,0.00100001]
[1757812118026,19.93631345,4660.9,4660.8,0.00100001]
[1757812118426,13.57112316,4660.9,4660.8,0.00100001]
[1757812118629,15.86712316,4660.9,4660.8,0.00100001]
[1757812119953,15.86712316,4660.9,4660.8,0.24120001]
[1757812120359,15.86712316,4660.9,4660.8,0.00100001]
[1757812120930,18.64931345,4660.9,4660.8,0.00100001]
[1757812121523,19.93631345,4660.9,4660.8,0.00100001]
[1757812122055,20.68951345,4660.9,4660.8,0.00100001]
[1757812122554,20.42621055,4660.9,4660.8,0.00100001]
[1757812122755,22.98711055,4660.9,4660.8,0.00100001]
[1757812122947,19.00052026,4660.9,4660.8,0.00100001]
[1757812123254,18.80112316,4660.9,4660.8,0.00100001]
[1757812124023,18.80112316,4660.9,4660.8,0.24120001]
[1757812124024,12.36761479,4660.9,4660.8,0.24120001]
[1757812124256,8.7732,4660.9,4660.8,0.24120001]
[1757812124458,5.229,4660.9,4660.8,0.24120001]
[1757812125159,1.647,4660.9,4660.8,0.24120001]
[1757812125453,7.37450837,4660.9,4660.8,0.24120001]
[1757812125654,3.79250837,4660.9,4660.8,0.24120001]
[1757812125843,7.37450837,4660.9,4660.8,0.24120001]
[1757812126050,5.229,4660.9,4660.8,0.24120001]
[1757812126936,1.647,4660.9,4660.8,2.38675442]
[1757812127141,1.647,4660.9,4660.8,2.94719832]
[1757812127142,5.229,4660.9,4660.8,2.94719832]
[1757812127354,1.647,4661.6,4660.9,2.1454952]
[1757812127530,3.582,4661.5,4661.0,0.02145462]
[1757812127731,3.582,4661.5,4661.2,2.14536646]
[1757812128026,1.647,4661.6,4661.3,0.36885324]
[1757812128227,1.647,4661.6,4661.4,0.49162139]
[1757812128429,1.649,4662.8,4661.6,2.1451862]
[1757812128661,3.583,4662.7,4661.8,2.14508232]
[1757812128846,3.583,4662.7,4661.0,1.647]
[1757812128847,2.144854,4662.4,4661.9,0.2402]
[1757812129051,3.583,4662.3,4661.9,0.2402]
[1757812129359,3.583,4662.2,4661.9,0.2402]
[1757812129567,3.583,4662.1,4661.0,1.647]
[1757812129774,1.649,4662.8,4661.3,0.2402]
[1757812129775,5.74943517,4662.0,4661.3,0.2402]
[1757812129934,2.14516481,4661.7,4661.3,0.2402]
[1757812130134,3.60441939,4661.6,4660.9,0.2402]
[1757812130468,3.583,4661.6,4660.9,2.38570289]
[1757812130962,3.583,4661.6,4660.9,0.2402]
[1757812131154,3.583,4661.6,4661.0,0.23867543]
[1757812132064,3.583,4661.6,4660.8,0.00100001]
[1757812132065,0.02141939,4661.5,4660.8,0.00100001]
[1757812134338,3.583,4661.6,4660.9,0.2402]
[1757812134553,3.79205858,4661.9,4661.0,2.14546234]
[1757812134747,3.60441939,4661.8,4661.0,2.14546234]
[1757812134953,3.60441939,4661.8,4660.9,0.2402]
[1757812134954,3.60441939,4661.8,4661.1,2.3840805]
[1757812135553,3.60441939,4661.8,4661.1,0.23866624]
[1757812136155,3.582,4661.7,4661.2,0.2402]
[1757812136472,3.582,4661.7,4660.9,2.14550837]
[1757812136473,3.582,4661.7,4661.0,2.14543822]
[1757812136973,3.582,4661.7,4661.1,2.14540155]
[1757812137884,3.582,4661.7,4660.9,2.38566761]
[1757812138088,3.582,4661.7,4661.0,0.53866676]
[1757812138247,3.582,4661.7,4660.9,0.2402]
[1757812138446,3.582,4661.7,4661.5,0.1072]
[1757812142662,1.647,4661.9,4661.5,2.25241677]
[1757812142876,3.581,4662.4,4661.9,2.14504777]
[1757812143076,1.646,4662.7,4662.0,0.21450478]
[1757812143077,3.581,4662.3,4662.0,0.21450478]
[1757812143378,3.581,4662.3,4661.8,0.1072]
[1757812143379,3.581,4662.2,4661.9,2.14504227]
[1757812143577,3.581,4662.2,4662.1,2.14495613]
[1757812143903,3.581,4662.2,4662.1,2.25215613]
[1757812144101,1.646,4662.7,4662.1,3.3474]
[1757812144102,3.581,4662.6,4662.1,3.3474]
[1757812144316,3.581,4662.6,4662.5,2.14477211]
[1757812144470,3.583,4662.8,4662.7,2.14468012]
[1757812145106,0.002,4662.8,4662.7,3.17688012]
[1757812145270,0.002,4662.8,4662.7,6.19832692]
[1757812145601,0.002,4662.8,4662.7,7.02191002]
[1757812146498,0.002,4662.8,4662.7,37.02191002]
[1757812149300,0.002,4662.8,4662.7,40.60291002]
[1757812149920,0.002,4662.8,4662.7,10.60291002]
[1757812150096,0.002,4662.8,4662.7,7.02191002]
[1757812150301,0.002,4662.8,4662.7,3.78171002]
[1757812150748,0.002,4662.8,4662.7,2.93668012]
[1757812151100,0.002,4662.8,4662.2,0.336885]
[1757812151314,0.4456,4662.7,4662.5,2.14477108]
[1757812151726,0.3028,4662.6,4662.4,5.14481487]
[1757812151940,0.9054,4662.5,4661.8,1.646]
[1757812152119,0.3028,4662.6,4661.2,4.40034242]
[1757812152120,0.3028,4661.9,4661.2,4.40034242]
[1757812152450,0.9054,4661.8,4661.3,0.44003424]
[1757812152649,3.581,4662.6,4660.8,1.64700001]
[1757812152650,0.3028,4661.4,4660.8,1.64700001]
[1757812152807,0.4456,4661.3,4660.8,0.00100001]
[1757812153207,0.02141939,4661.8,4660.9,2.14550837]
[1757812153208,0.9054,4661.2,4660.9,2.14550837]
[1757812153443,0.4456,4661.1,4660.8,2.14651226]
[1757812153738,0.4456,4661.1,4660.9,2.36015078]
[1757812153926,0.4456,4661.1,4661.0,0.19950862]
[1757812154437,0.7484,4661.1,4661.0,2.34497096]
[1757812154639,1.2082,4661.1,4661.0,0.19950862]
[1757812154842,1.2082,4661.1,4660.8,0.00100001]
[1757812155041,0.9054,4661.0,4660.8,0.00100001]
[1757812155924,0.9104,4661.0,4660.8,0.00100001]
[1757812156314,0.4506,4661.0,4660.8,0.20058516]
[1757812156647,2.14536761,4661.3,4660.9,0.30678515]
[1757812156825,0.7387,4661.0,4660.9,0.1072]
[1757812157229,1.1893,4661.0,4660.9,0.1072]
[1757812158242,0.7377,4661.0,4660.9,0.1072]
[1757812161456,1.1893,4661.0,4660.8,0.00100001]
[1757812161752,0.7377,4661.0,4660.8,0.00100001]
[1757812161980,0.4516,4660.9,4660.8,0.00100001]
[1757812162322,1.1893,4660.9,4660.8,0.00100001]
[1757812165445,3.35622776,4660.9,4660.8,0.00100001]
[1757812165635,3.33480837,4660.9,4660.8,0.00100001]
[1757812165840,2.14573856,4660.4,4660.3,0.001]
[1757812166156,5.72673856,4660.4,4660.3,0.001]
[1757812166369,6.91603856,4660.4,4660.3,0.001]
[1757812167751,9.91603856,4660.4,4660.3,0.001]
[1757812170537,6.33503856,4660.4,4660.3,0.001]
[1757812170734,9.91703856,4660.4,4660.3,0.001]
[1757812172552,6.91703856,4660.4,4660.3,0.001]
[1757812173088,0.2871,4660.4,4660.3,0.001]
[1757812173290,6.93845795,4660.4,4660.3,0.001]
[1757812173586,6.91703856,4660.4,4660.3,0.001]
[1757812186712,8.20403856,4660.4,4660.3,0.001]
[1757812190313,4.62203856,4660.4,4660.3,0.001]
[1757812190513,5.72773856,4660.4,4660.3,0.001]
[1757812190825,6.97793856,4660.4,4660.3,0.001]
[1757812191024,18.28393856,4660.4,4660.3,0.001]
[1757812191227,18.40325488,4660.4,4660.3,0.001]
[1757812191552,18.48913722,4660.4,4660.3,0.001]